[Event "Titled Tuesday Blitz November 07 Early 2023"]
[White "Kanyamarala, Trisha"]
[Black "Akhmedinov, Satbek"]
[WhiteFideId "45004722"]
[BlackFideId "13714287"]
[WhiteElo "2505"]
[BlackElo "2712"]
[Result "1-0"]
[Round "7"]
[TimeControl "180+1"]
[Date "2023.11.07"]
[WhiteClock "0:00:10"]
[BlackClock "0:00:32"]
[Board "59"]

1. c4 {[%clk 0:03:00]}  Nf6 {[%clk 0:02:57]} 2. Nc3 {[%clk 0:03:00]}  e5 {[%clk 0:02:57]} 3. Nf3 {[%clk 0:02:59]}  Nc6 {[%clk 0:02:57]} 4. g3 {[%clk 0:02:58]}  Bb4 {[%clk 0:02:56]} 5. Nd5 {[%clk 0:02:56]}  Bc5 {[%clk 0:02:55]} 6. Bg2 {[%clk 0:02:55]}  O-O {[%clk 0:02:55]} 7. O-O {[%clk 0:02:54]}  e4 {[%clk 0:02:46]} 8. Ne1 {[%clk 0:02:50]}  Re8 {[%clk 0:02:43]} 9. d4 {[%clk 0:02:49]}  Bxd4 {[%clk 0:02:39]} 10. Nc2 {[%clk 0:02:44]}  Be5 {[%clk 0:02:37]} 11. Nce3 {[%clk 0:02:29]}  d6 {[%clk 0:02:36]} 12. Rb1 {[%clk 0:02:23]}  a5 {[%clk 0:02:31]} 13. b3 {[%clk 0:02:10]}  Be6 {[%clk 0:02:32]} 14. Ba3 {[%clk 0:02:08]}  Bxd5 {[%clk 0:02:30]} 15. Nxd5 {[%clk 0:02:04]}  Nb4 {[%clk 0:02:28]} 16. Bxb4 {[%clk 0:01:49]}  axb4 {[%clk 0:02:26]} 17. Qc2 {[%clk 0:01:49]}  Nxd5 {[%clk 0:02:24]} 18. cxd5 {[%clk 0:01:48]}  f5 {[%clk 0:02:25]} 19. Rfc1 {[%clk 0:01:46]}  Re7 {[%clk 0:02:20]} 20. Bh3 {[%clk 0:01:42]}  g6 {[%clk 0:02:18]} 21. f4 {[%clk 0:01:27]}  Bd4+ {[%clk 0:02:12]} 22. Kh1 {[%clk 0:01:26]}  Ra3 {[%clk 0:02:09]} 23. Rd1 {[%clk 0:01:22]}  Bc3 {[%clk 0:02:08]} 24. g4 {[%clk 0:01:16]}  Rf7 {[%clk 0:01:53]} 25. e3 {[%clk 0:01:13]}  Qh4 {[%clk 0:01:52]} 26. Qg2 {[%clk 0:01:11]}  Kf8 {[%clk 0:01:49]} 27. Rg1 {[%clk 0:01:03]}  Rg7 {[%clk 0:01:34]} 28. Rbf1 {[%clk 0:00:57]}  Ke7 {[%clk 0:01:31]} 29. Rf2 {[%clk 0:00:50]}  c6 {[%clk 0:01:29]} 30. Qf1 {[%clk 0:00:34]}  cxd5 {[%clk 0:01:24]} 31. Rfg2 {[%clk 0:00:34]}  Qxh3 {[%clk 0:01:21]} 32. gxf5 {[%clk 0:00:32]}  Qf3 {[%clk 0:01:19]} 33. Qb5 {[%clk 0:00:27]}  Rxa2 {[%clk 0:01:17]} 34. Qxb7+ {[%clk 0:00:22]}  Kf6 {[%clk 0:01:17]} 35. Qc8 {[%clk 0:00:19]}  Qxg2+ {[%clk 0:00:50]} 36. Rxg2 {[%clk 0:00:16]}  Ra1+ {[%clk 0:00:51]} 37. Rg1 {[%clk 0:00:16]}  Rxg1+ {[%clk 0:00:52]} 38. Kxg1 {[%clk 0:00:16]}  gxf5+ {[%clk 0:00:53]} 39. Kf1 {[%clk 0:00:16]}  Rf7 {[%clk 0:00:48]} 40. Qd8+ {[%clk 0:00:14]}  Kg7 {[%clk 0:00:47]} 41. Qg5+ {[%clk 0:00:14]}  Kf8 {[%clk 0:00:48]} 42. Qd8+ {[%clk 0:00:12]}  Kg7 {[%clk 0:00:48]} 43. Qxd6 {[%clk 0:00:12]}  Rf6 {[%clk 0:00:43]} 44. Qxd5 {[%clk 0:00:12]}  Kh6 {[%clk 0:00:43]} 45. Qd8 {[%clk 0:00:11]}  Kh5 {[%clk 0:00:38]} 46. Qe8+ {[%clk 0:00:11]}  Kg4 {[%clk 0:00:37]} 47. Qg8+ {[%clk 0:00:10]}  Kf3 {[%clk 0:00:32]} 48. Qg3# {[%clk 0:00:10]} 1-0


[Site "https://www.chess.com"]

[Event "Titled Tuesday Blitz November 07 Early 2023"]
[White "Hasangatin, Ramil"]
[Black "Bettalli, Francesco"]
[WhiteFideId "4122160"]
[BlackFideId "2816453"]
[WhiteElo "2709"]
[BlackElo "2534"]
[Result "0-1"]
[Round "7"]
[TimeControl "180+1"]
[Date "2023.11.07"]
[WhiteClock "0:00:00"]
[BlackClock "0:02:21"]
[Board "60"]

1. e4 {[%clk 0:03:00]}  g6 {[%clk 0:02:56]} 2. d4 {[%clk 0:03:00]}  d5 {[%clk 0:02:56]} 3. Nc3 {[%clk 0:03:00]}  dxe4 {[%clk 0:02:57]} 4. Nxe4 {[%clk 0:03:01]}  Bg7 {[%clk 0:02:57]} 5. Nf3 {[%clk 0:03:01]}  Bg4 {[%clk 0:02:52]} 6. c3 {[%clk 0:03:00]}  Nf6 {[%clk 0:02:52]} 7. Nxf6+ {[%clk 0:02:59]}  Bxf6 {[%clk 0:02:53]} 8. Bh6 {[%clk 0:02:58]}  Nd7 {[%clk 0:02:50]} 9. Be2 {[%clk 0:02:54]}  c6 {[%clk 0:02:50]} 10. Qb3 {[%clk 0:02:53]}  Qc7 {[%clk 0:02:49]} 11. h3 {[%clk 0:02:52]}  Be6 {[%clk 0:02:47]} 12. Qc2 {[%clk 0:02:48]}  Bf5 {[%clk 0:02:47]} 13. Qd2 {[%clk 0:02:47]}  O-O-O {[%clk 0:02:46]} 14. O-O {[%clk 0:02:42]}  e5 {[%clk 0:02:45]} 15. Bg5 {[%clk 0:02:38]}  e4 {[%clk 0:02:42]} 16. Bxf6 {[%clk 0:02:38]}  Nxf6 {[%clk 0:02:43]} 17. Ne1 {[%clk 0:02:36]}  h5 {[%clk 0:02:40]} 18. Nc2 {[%clk 0:02:35]}  Ng4 {[%clk 0:02:35]} 19. hxg4 {[%clk 0:02:33]}  hxg4 {[%clk 0:02:36]} 20. g3 {[%clk 0:02:33]}  f6 {[%clk 0:02:35]} 21. Bxg4 {[%clk 0:00:54]}  Bxg4 {[%clk 0:02:33]} 22. f4 {[%clk 0:00:51]}  Bf3 {[%clk 0:02:22]} 23. Rxf3 {[%clk 0:00:44]}  exf3 {[%clk 0:02:23]} 24. Qf2 {[%clk 0:00:39]}  Qh7 {[%clk 0:02:20]} 25. Qxf3 {[%clk 0:00:39]}  Qh2+ {[%clk 0:02:21]} 26. Kf1 {[%clk 0:00:00]}  Qxc2 {[%clk 0:02:21]} 0-1


[Site "https://www.chess.com"]

[Event "Titled Tuesday Blitz November 07 Early 2023"]
[White "Nagare Kaivalya Sandip"]
[Black "Soumya, Swaminathan"]
[WhiteFideId "25957929"]
[BlackFideId "5016193"]
[WhiteElo "2701"]
[BlackElo "2407"]
[Result "1-0"]
[Round "7"]
[TimeControl "180+1"]
[Date "2023.11.07"]
[WhiteClock "0:00:10"]
[BlackClock "0:00:00"]
[Board "62"]

1. e4 {[%clk 0:03:00]}  c5 {[%clk 0:02:59]} 2. Nf3 {[%clk 0:03:00]}  Nc6 {[%clk 0:02:59]} 3. d4 {[%clk 0:03:00]}  cxd4 {[%clk 0:02:59]} 4. Nxd4 {[%clk 0:03:01]}  Nf6 {[%clk 0:03:00]} 5. Nc3 {[%clk 0:03:02]}  d6 {[%clk 0:03:00]} 6. Bg5 {[%clk 0:03:02]}  e6 {[%clk 0:02:59]} 7. Qd2 {[%clk 0:03:03]}  a6 {[%clk 0:02:58]} 8. O-O-O {[%clk 0:03:03]}  Be7 {[%clk 0:02:57]} 9. Kb1 {[%clk 0:03:03]}  Bd7 {[%clk 0:02:53]} 10. f4 {[%clk 0:03:03]}  b5 {[%clk 0:02:48]} 11. Bxf6 {[%clk 0:02:50]}  gxf6 {[%clk 0:02:48]} 12. Nxc6 {[%clk 0:02:49]}  Bxc6 {[%clk 0:02:48]} 13. Bd3 {[%clk 0:02:49]}  Qb6 {[%clk 0:02:36]} 14. Rhe1 {[%clk 0:02:43]}  Ra7 {[%clk 0:02:06]} 15. f5 {[%clk 0:02:37]}  b4 {[%clk 0:02:02]} 16. Ne2 {[%clk 0:02:35]}  e5 {[%clk 0:02:02]} 17. Ng3 {[%clk 0:02:31]}  h5 {[%clk 0:02:01]} 18. h4 {[%clk 0:02:14]}  a5 {[%clk 0:01:17]} 19. Qe2 {[%clk 0:02:09]}  a4 {[%clk 0:01:13]} 20. Nxh5 {[%clk 0:02:09]}  a3 {[%clk 0:01:06]} 21. Bc4 {[%clk 0:02:09]}  axb2 {[%clk 0:00:58]} 22. g4 {[%clk 0:02:02]}  Qa5 {[%clk 0:00:27]} 23. g5 {[%clk 0:01:53]}  Qa3 {[%clk 0:00:18]} 24. gxf6 {[%clk 0:01:25]}  Bf8 {[%clk 0:00:18]} 25. Ng7+ {[%clk 0:01:22]}  Kd8 {[%clk 0:00:19]} 26. Bb3 {[%clk 0:01:11]}  Ba4 {[%clk 0:00:16]} 27. Qc4 {[%clk 0:00:55]}  Rxh4 {[%clk 0:00:15]} 28. Rh1 {[%clk 0:00:47]}  Rxe4 {[%clk 0:00:11]} 29. Qd5 {[%clk 0:00:43]}  Bxb3 {[%clk 0:00:09]} 30. Qxb3 {[%clk 0:00:41]}  Qxb3 {[%clk 0:00:08]} 31. axb3 {[%clk 0:00:29]}  Ra1+ {[%clk 0:00:05]} 32. Kxb2 {[%clk 0:00:29]}  Rxd1 {[%clk 0:00:05]} 33. Rxd1 {[%clk 0:00:30]}  Rg4 {[%clk 0:00:05]} 34. Ra1 {[%clk 0:00:15]}  Bxg7 {[%clk 0:00:03]} 35. fxg7 {[%clk 0:00:15]}  Rxg7 {[%clk 0:00:03]} 36. Ra8+ {[%clk 0:00:13]}  Ke7 {[%clk 0:00:03]} 37. Rb8 {[%clk 0:00:12]}  Rg4 {[%clk 0:00:02]} 38. Rb6 {[%clk 0:00:11]}  Rd4 {[%clk 0:00:00]} 39. c3 {[%clk 0:00:10]} 1-0


[Site "https://www.chess.com"]

[Event "Titled Tuesday Blitz November 07 Early 2023"]
[White "Silvestre, Christian"]
[Black "Yeletsky, Ivan"]
[WhiteFideId "30956269"]
[BlackFideId "24180327"]
[WhiteElo "2206"]
[BlackElo "2931"]
[Result "0-1"]
[Round "7"]
[TimeControl "180+1"]
[Date "2023.11.07"]
[WhiteClock "0:00:01"]
[BlackClock "0:00:17"]
[Board "63"]

1. e4 {[%clk 0:03:00]}  Nf6 {[%clk 0:02:58]} 2. Nc3 {[%clk 0:02:50]}  d6 {[%clk 0:02:56]} 3. g3 {[%clk 0:02:45]}  c6 {[%clk 0:02:34]} 4. Bg2 {[%clk 0:02:45]}  b5 {[%clk 0:02:34]} 5. d3 {[%clk 0:02:45]}  e5 {[%clk 0:02:31]} 6. h3 {[%clk 0:02:40]}  Nbd7 {[%clk 0:02:28]} 7. Nge2 {[%clk 0:02:40]}  b4 {[%clk 0:02:27]} 8. Nb1 {[%clk 0:02:40]}  a5 {[%clk 0:02:22]} 9. O-O {[%clk 0:02:39]}  Be7 {[%clk 0:02:05]} 10. a3 {[%clk 0:02:38]}  Ba6 {[%clk 0:02:03]} 11. axb4 {[%clk 0:02:37]}  axb4 {[%clk 0:02:03]} 12. Be3 {[%clk 0:02:13]}  O-O {[%clk 0:01:59]} 13. Nd2 {[%clk 0:02:12]}  h6 {[%clk 0:01:53]} 14. Nf3 {[%clk 0:02:01]}  d5 {[%clk 0:01:49]} 15. Nh4 {[%clk 0:01:53]}  Re8 {[%clk 0:01:36]} 16. Nf5 {[%clk 0:01:51]}  Bf8 {[%clk 0:01:37]} 17. Re1 {[%clk 0:01:29]}  Kh7 {[%clk 0:01:33]} 18. g4 {[%clk 0:01:27]}  g6 {[%clk 0:01:32]} 19. Nfg3 {[%clk 0:01:26]}  Bc5 {[%clk 0:01:25]} 20. Bxc5 {[%clk 0:01:08]}  Nxc5 {[%clk 0:01:26]} 21. b3 {[%clk 0:01:01]}  dxe4 {[%clk 0:01:24]} 22. Nxe4 {[%clk 0:00:56]}  Nfxe4 {[%clk 0:01:22]} 23. dxe4 {[%clk 0:00:57]}  Qf6 {[%clk 0:01:15]} 24. Ng3 {[%clk 0:00:53]}  Rad8 {[%clk 0:01:04]} 25. Qf3 {[%clk 0:00:45]}  Qxf3 {[%clk 0:00:46]} 26. Bxf3 {[%clk 0:00:46]}  Rd2 {[%clk 0:00:47]} 27. Red1 {[%clk 0:00:44]}  Rxc2 {[%clk 0:00:44]} 28. Rdc1 {[%clk 0:00:44]}  Rxc1+ {[%clk 0:00:37]} 29. Rxc1 {[%clk 0:00:44]}  Nxb3 {[%clk 0:00:37]} 30. Rxc6 {[%clk 0:00:43]}  Bb5 {[%clk 0:00:32]} 31. Rb6 {[%clk 0:00:43]}  Nd4 {[%clk 0:00:32]} 32. Bd1 {[%clk 0:00:41]}  Kg7 {[%clk 0:00:31]} 33. Nf1 {[%clk 0:00:32]}  Re6 {[%clk 0:00:17]} 34. Rb8 {[%clk 0:00:30]}  Ra6 {[%clk 0:00:18]} 35. Ne3 {[%clk 0:00:29]}  Ra1 {[%clk 0:00:18]} 36. Kg2 {[%clk 0:00:29]}  Bc6 {[%clk 0:00:18]} 37. f3 {[%clk 0:00:14]}  b3 {[%clk 0:00:18]} 38. Kg3 {[%clk 0:00:09]}  Rb1 {[%clk 0:00:18]} 39. Rb6 {[%clk 0:00:04]}  b2 {[%clk 0:00:15]} 40. Ba4 {[%clk 0:00:02]}  Bxa4 {[%clk 0:00:14]} 41. Nd5 {[%clk 0:00:03]}  Rg1+ {[%clk 0:00:13]} 42. Kf2 {[%clk 0:00:02]}  b1=Q {[%clk 0:00:14]} 43. Rxb1 {[%clk 0:00:02]}  Rxb1 {[%clk 0:00:15]} 44. Nc3 {[%clk 0:00:02]}  Rb2+ {[%clk 0:00:16]} 45. Ne2 {[%clk 0:00:03]}  Nxe2 {[%clk 0:00:17]} 46. g5 {[%clk 0:00:02]}  hxg5 {[%clk 0:00:17]} 47. Ke3 {[%clk 0:00:03]}  Nf4 {[%clk 0:00:17]} 48. h4 {[%clk 0:00:01]}  Re2# {[%clk 0:00:17]} 0-1


[Site "https://www.chess.com"]

[Event "Titled Tuesday Blitz November 07 Early 2023"]
[White "Baskakov, Egor"]
[Black "Souleidis, Georgios"]
[WhiteFideId "24197866"]
[BlackFideId "4206827"]
[WhiteElo "2904"]
[BlackElo "2610"]
[Result "1-0"]
[Round "7"]
[TimeControl "180+1"]
[Date "2023.11.07"]
[WhiteClock "0:00:13"]
[BlackClock "0:00:16"]
[Board "65"]

1. e4 {[%clk 0:03:00]}  c5 {[%clk 0:03:00]} 2. Nf3 {[%clk 0:03:00]}  e6 {[%clk 0:03:00]} 3. Be2 {[%clk 0:03:00]}  d5 {[%clk 0:02:58]} 4. exd5 {[%clk 0:03:00]}  exd5 {[%clk 0:02:59]} 5. d4 {[%clk 0:03:00]}  Nf6 {[%clk 0:02:59]} 6. O-O {[%clk 0:03:01]}  Nc6 {[%clk 0:02:59]} 7. c4 {[%clk 0:03:01]}  Be7 {[%clk 0:02:55]} 8. Nc3 {[%clk 0:02:58]}  cxd4 {[%clk 0:02:43]} 9. Nxd4 {[%clk 0:02:56]}  Nxd4 {[%clk 0:02:37]} 10. Qxd4 {[%clk 0:02:49]}  dxc4 {[%clk 0:02:37]} 11. Qxd8+ {[%clk 0:02:47]}  Bxd8 {[%clk 0:02:38]} 12. Bxc4 {[%clk 0:02:47]}  O-O {[%clk 0:02:38]} 13. Bf4 {[%clk 0:02:42]}  Bf5 {[%clk 0:02:35]} 14. Rfe1 {[%clk 0:02:39]}  Bb6 {[%clk 0:02:28]} 15. Be3 {[%clk 0:02:34]}  Bxe3 {[%clk 0:02:20]} 16. Rxe3 {[%clk 0:02:35]}  Rfe8 {[%clk 0:02:20]} 17. Rae1 {[%clk 0:02:31]}  Kf8 {[%clk 0:02:15]} 18. f3 {[%clk 0:02:25]}  Rxe3 {[%clk 0:02:14]} 19. Rxe3 {[%clk 0:02:26]}  Rc8 {[%clk 0:02:13]} 20. Bb3 {[%clk 0:02:24]}  Rd8 {[%clk 0:02:12]} 21. Kf2 {[%clk 0:02:20]}  h5 {[%clk 0:02:09]} 22. Re5 {[%clk 0:02:18]}  g6 {[%clk 0:02:04]} 23. Ke3 {[%clk 0:02:14]}  Nd7 {[%clk 0:01:51]} 24. Ra5 {[%clk 0:02:11]}  a6 {[%clk 0:01:45]} 25. Kf4 {[%clk 0:02:08]}  Nf6 {[%clk 0:01:16]} 26. Rc5 {[%clk 0:01:51]}  Rd7 {[%clk 0:01:10]} 27. h3 {[%clk 0:01:46]}  Ke7 {[%clk 0:01:04]} 28. g4 {[%clk 0:01:42]}  hxg4 {[%clk 0:01:05]} 29. fxg4 {[%clk 0:01:35]}  Be6 {[%clk 0:01:03]} 30. Bxe6 {[%clk 0:01:32]}  Kxe6 {[%clk 0:01:03]} 31. Re5+ {[%clk 0:01:21]}  Kd6 {[%clk 0:01:01]} 32. h4 {[%clk 0:01:07]}  Rc7 {[%clk 0:00:55]} 33. Ne4+ {[%clk 0:00:24]}  Nxe4 {[%clk 0:00:55]} 34. Rxe4 {[%clk 0:00:24]}  Rc2 {[%clk 0:00:55]} 35. Rb4 {[%clk 0:00:22]}  b5 {[%clk 0:00:55]} 36. h5 {[%clk 0:00:21]}  gxh5 {[%clk 0:00:54]} 37. gxh5 {[%clk 0:00:22]}  Kc5 {[%clk 0:00:54]} 38. Rb3 {[%clk 0:00:21]}  Rh2 {[%clk 0:00:51]} 39. Kg4 {[%clk 0:00:21]}  f5+ {[%clk 0:00:48]} 40. Kg5 {[%clk 0:00:20]}  f4 {[%clk 0:00:48]} 41. Rf3 {[%clk 0:00:17]}  b4 {[%clk 0:00:47]} 42. a3 {[%clk 0:00:14]}  a5 {[%clk 0:00:45]} 43. axb4+ {[%clk 0:00:14]}  axb4 {[%clk 0:00:46]} 44. b3 {[%clk 0:00:14]}  Kb5 {[%clk 0:00:42]} 45. Rxf4 {[%clk 0:00:13]}  Rh3 {[%clk 0:00:41]} 46. h6 {[%clk 0:00:12]}  Rg3+ {[%clk 0:00:29]} 47. Rg4 {[%clk 0:00:12]}  Rh3 {[%clk 0:00:24]} 48. Rh4 {[%clk 0:00:12]}  Rg3+ {[%clk 0:00:24]} 49. Kf4 {[%clk 0:00:12]}  Rg8 {[%clk 0:00:16]} 50. h7 {[%clk 0:00:12]}  Rh8 {[%clk 0:00:16]} 51. Kf5 {[%clk 0:00:13]} 1-0


[Site "https://www.chess.com"]

[Event "Titled Tuesday Blitz November 07 Early 2023"]
[White "Timofeev, Artyom"]
[Black "Perdomo, Carlos Andres"]
[WhiteFideId "4140419"]
[BlackFideId "4400852"]
[WhiteElo "2839"]
[BlackElo "2608"]
[Result "1-0"]
[Round "7"]
[TimeControl "180+1"]
[Date "2023.11.07"]
[WhiteClock "0:00:41"]
[BlackClock "0:00:04"]
[Board "67"]

1. c4 {[%clk 0:03:00]}  c5 {[%clk 0:02:58]} 2. Nf3 {[%clk 0:03:00]}  Nf6 {[%clk 0:02:56]} 3. Nc3 {[%clk 0:02:59]}  e6 {[%clk 0:02:51]} 4. e4 {[%clk 0:02:59]}  d6 {[%clk 0:02:51]} 5. d4 {[%clk 0:02:58]}  cxd4 {[%clk 0:02:52]} 6. Nxd4 {[%clk 0:02:59]}  a6 {[%clk 0:02:51]} 7. g3 {[%clk 0:02:58]}  b6 {[%clk 0:02:42]} 8. Bg2 {[%clk 0:02:57]}  Bb7 {[%clk 0:02:42]} 9. O-O {[%clk 0:02:57]}  Qc7 {[%clk 0:02:42]} 10. Be3 {[%clk 0:02:55]}  Nbd7 {[%clk 0:02:37]} 11. Rc1 {[%clk 0:02:54]}  Rc8 {[%clk 0:02:31]} 12. b3 {[%clk 0:02:40]}  Be7 {[%clk 0:02:24]} 13. h3 {[%clk 0:02:40]}  Nc5 {[%clk 0:02:17]} 14. Qc2 {[%clk 0:02:36]}  Qb8 {[%clk 0:02:15]} 15. Rfe1 {[%clk 0:02:34]}  Qa8 {[%clk 0:02:13]} 16. Bd2 {[%clk 0:02:33]}  O-O {[%clk 0:02:05]} 17. a4 {[%clk 0:02:32]}  Rfd8 {[%clk 0:01:54]} 18. Kh2 {[%clk 0:02:31]}  Bf8 {[%clk 0:01:47]} 19. Bg5 {[%clk 0:02:30]}  Ncd7 {[%clk 0:01:43]} 20. Qb1 {[%clk 0:02:15]}  h6 {[%clk 0:01:39]} 21. Bd2 {[%clk 0:02:13]}  Ne5 {[%clk 0:01:31]} 22. Rcd1 {[%clk 0:02:09]}  Nc6 {[%clk 0:01:28]} 23. Nc2 {[%clk 0:01:57]}  Nd7 {[%clk 0:01:13]} 24. f4 {[%clk 0:01:44]}  Nc5 {[%clk 0:00:55]} 25. Be3 {[%clk 0:01:41]}  Nd7 {[%clk 0:00:33]} 26. Bg1 {[%clk 0:01:35]}  Qb8 {[%clk 0:00:29]} 27. Qb2 {[%clk 0:01:32]}  Ba8 {[%clk 0:00:29]} 28. Ne3 {[%clk 0:01:29]}  Nb4 {[%clk 0:00:27]} 29. Qd2 {[%clk 0:01:26]}  Nc5 {[%clk 0:00:23]} 30. Ng4 {[%clk 0:01:25]}  a5 {[%clk 0:00:14]} 31. f5 {[%clk 0:01:19]}  exf5 {[%clk 0:00:14]} 32. exf5 {[%clk 0:01:18]}  Nxb3 {[%clk 0:00:14]} 33. Qe2 {[%clk 0:01:13]}  Bxg2 {[%clk 0:00:15]} 34. Qxg2 {[%clk 0:01:13]}  Rxc4 {[%clk 0:00:14]} 35. Nb5 {[%clk 0:01:13]}  Rc2 {[%clk 0:00:13]} 36. Re2 {[%clk 0:01:13]}  Rxe2 {[%clk 0:00:14]} 37. Qxe2 {[%clk 0:01:13]}  Nc5 {[%clk 0:00:15]} 38. f6 {[%clk 0:01:12]}  g6 {[%clk 0:00:14]} 39. Qe3 {[%clk 0:01:09]}  Kh7 {[%clk 0:00:14]} 40. Qf4 {[%clk 0:01:00]}  h5 {[%clk 0:00:13]} 41. Nf2 {[%clk 0:00:56]}  Re8 {[%clk 0:00:13]} 42. Qf3 {[%clk 0:00:56]}  Re6 {[%clk 0:00:11]} 43. h4 {[%clk 0:00:56]}  Qe8 {[%clk 0:00:09]} 44. Nh3 {[%clk 0:00:55]}  Qd7 {[%clk 0:00:10]} 45. Ng5+ {[%clk 0:00:55]}  Kg8 {[%clk 0:00:11]} 46. Nxe6 {[%clk 0:00:53]}  Qxe6 {[%clk 0:00:12]} 47. Bxc5 {[%clk 0:00:50]}  bxc5 {[%clk 0:00:11]} 48. Qf2 {[%clk 0:00:47]}  d5 {[%clk 0:00:11]} 49. Re1 {[%clk 0:00:47]}  Qg4 {[%clk 0:00:11]} 50. Re8 {[%clk 0:00:45]}  Nd3 {[%clk 0:00:11]} 51. Qe3 {[%clk 0:00:42]}  c4 {[%clk 0:00:09]} 52. Rxf8+ {[%clk 0:00:40]}  Kxf8 {[%clk 0:00:08]} 53. Qe7+ {[%clk 0:00:40]}  Kg8 {[%clk 0:00:04]} 54. Qe8+ {[%clk 0:00:41]} 1-0


[Site "https://www.chess.com"]

[Event "Titled Tuesday Blitz November 07 Early 2023"]
[White "Materia, Marco"]
[Black "Tasev, Dejan"]
[WhiteFideId "45150451"]
[BlackFideId "936618"]
[WhiteElo "2802"]
[BlackElo "2606"]
[Result "1-0"]
[Round "7"]
[TimeControl "180+1"]
[Date "2023.11.07"]
[WhiteClock "0:01:14"]
[BlackClock "0:00:00"]
[Board "69"]

1. d4 {[%clk 0:03:00]}  Nf6 {[%clk 0:02:59]} 2. c4 {[%clk 0:03:01]}  e6 {[%clk 0:02:58]} 3. Nf3 {[%clk 0:03:01]}  d5 {[%clk 0:02:58]} 4. Nc3 {[%clk 0:03:01]}  Be7 {[%clk 0:02:58]} 5. Bg5 {[%clk 0:02:58]}  O-O {[%clk 0:02:58]} 6. e3 {[%clk 0:02:58]}  c6 {[%clk 0:02:57]} 7. Qc2 {[%clk 0:02:56]}  Nbd7 {[%clk 0:02:57]} 8. Rd1 {[%clk 0:02:52]}  a6 {[%clk 0:02:55]} 9. cxd5 {[%clk 0:02:50]}  exd5 {[%clk 0:02:55]} 10. Bd3 {[%clk 0:02:50]}  Re8 {[%clk 0:02:54]} 11. O-O {[%clk 0:02:50]}  Nf8 {[%clk 0:02:55]} 12. Ne5 {[%clk 0:02:47]}  g6 {[%clk 0:02:54]} 13. f4 {[%clk 0:02:46]}  Ne6 {[%clk 0:02:50]} 14. Bxf6 {[%clk 0:02:38]}  Bxf6 {[%clk 0:02:50]} 15. f5 {[%clk 0:02:39]}  Ng7 {[%clk 0:02:36]} 16. fxg6 {[%clk 0:02:34]}  fxg6 {[%clk 0:02:27]} 17. e4 {[%clk 0:02:13]}  Bxe5 {[%clk 0:02:15]} 18. dxe5 {[%clk 0:02:13]}  Be6 {[%clk 0:01:58]} 19. exd5 {[%clk 0:02:11]}  cxd5 {[%clk 0:01:57]} 20. Kh1 {[%clk 0:02:06]}  Rc8 {[%clk 0:01:54]} 21. Qf2 {[%clk 0:02:01]}  Qg5 {[%clk 0:01:46]} 22. Qd4 {[%clk 0:01:46]}  Rcd8 {[%clk 0:01:34]} 23. Rf6 {[%clk 0:01:43]}  Nh5 {[%clk 0:01:26]} 24. Rf2 {[%clk 0:01:35]}  Rf8 {[%clk 0:01:18]} 25. Rxf8+ {[%clk 0:01:26]}  Kxf8 {[%clk 0:01:14]} 26. Qb6 {[%clk 0:01:23]}  Nf4 {[%clk 0:00:51]} 27. Rf1 {[%clk 0:01:15]}  Kg8 {[%clk 0:00:00]} 28. Rxf4 {[%clk 0:01:14]} 1-0


[Site "https://www.chess.com"]